[Event "*** Titled Tuesday Blitz"]
[Site "Chess.com"]
[Date "2020.11.03"]
[Round "4"]
[White "rududuyk"]
[Black "ARTHURMOTIVATOR"]
[Result "0-1"]
[WhiteElo "2168"]
[BlackElo "2390"]
[TimeControl "180+1"]
[EndTime "10:42:16 PST"]
[Termination "ARTHURMOTIVATOR won on time"]

1. e4 {[%clk 0:03:00.9]} 1... c6 {[%clk 0:02:58.3]} 2. d4 {[%clk 0:03:00.2]}
2... d5 {[%clk 0:02:58.2]} 3. exd5 {[%clk 0:03:01.1]} 3... cxd5 {[%clk
0:02:58.6]} 4. Bd3 {[%clk 0:03:01.7]} 4... Nc6 {[%clk 0:02:57.4]} 5. c3 {[%clk
0:03:02]} 5... Nf6 {[%clk 0:02:53.1]} 6. Bf4 {[%clk 0:03:02]} 6... g6 {[%clk
0:02:51.2]} 7. h3 {[%clk 0:02:49.6]} 7... Bg7 {[%clk 0:02:51.5]} 8. Nf3 {[%clk
0:02:49.6]} 8... O-O {[%clk 0:02:50.7]} 9. Nbd2 {[%clk 0:02:46.4]} 9... Bf5
{[%clk 0:02:48.2]} 10. Bxf5 {[%clk 0:02:43.7]} 10... gxf5 {[%clk 0:02:49.1]} 11.
Qc2 {[%clk 0:02:29.2]} 11... Ne4 {[%clk 0:02:45.8]} 12. g4 {[%clk 0:02:28]}
12... Qd7 {[%clk 0:02:38.8]} 13. Rg1 {[%clk 0:02:21.3]} 13... Kh8 {[%clk
0:02:34.3]} 14. Nh4 {[%clk 0:01:57.8]} 14... fxg4 {[%clk 0:02:08.8]} 15. hxg4
{[%clk 0:01:43.1]} 15... e5 {[%clk 0:01:55]} 16. dxe5 {[%clk 0:01:37.7]} 16...
Bxe5 {[%clk 0:01:55.9]} 17. Bxe5+ {[%clk 0:01:20.1]} 17... Nxe5 {[%clk
0:01:56.8]} 18. O-O-O {[%clk 0:00:59]} 18... Nxd2 {[%clk 0:01:44.8]} 19. Qxd2
{[%clk 0:00:46.3]} 19... f6 {[%clk 0:01:42.6]} 20. Qxd5 {[%clk 0:00:35.7]} 20...
Qa4 {[%clk 0:01:19.2]} 21. Qb3 {[%clk 0:00:34.5]} 21... Qf4+ {[%clk 0:01:17.2]}
22. Kb1 {[%clk 0:00:34]} 22... Rad8 {[%clk 0:01:10.5]} 23. Rxd8 {[%clk
0:00:26.8]} 23... Rxd8 {[%clk 0:01:11.4]} 24. f3 {[%clk 0:00:22.9]} 24... Qh2
{[%clk 0:01:03.2]} 25. Ng6+ {[%clk 0:00:17.5]} 25... hxg6 {[%clk 0:00:59.9]} 26.
Re1 {[%clk 0:00:15.5]} 26... Qd2 {[%clk 0:00:57.2]} 27. Rh1+ {[%clk 0:00:14.3]}
27... Kg7 {[%clk 0:00:55.7]} 28. Qxb7+ {[%clk 0:00:14.7]} 28... Rd7 {[%clk
0:00:53.9]} 29. Qb8 {[%clk 0:00:12.1]} 29... Qd3+ {[%clk 0:00:50.7]} 30. Kc1
{[%clk 0:00:12.6]} 30... Rd8 {[%clk 0:00:36.1]} 31. Qc7+ {[%clk 0:00:11.9]}
31... Qd7 {[%clk 0:00:34.2]} 32. Qxd7+ {[%clk 0:00:10]} 32... Rxd7 {[%clk
0:00:31.8]} 33. Rf1 {[%clk 0:00:08.8]} 33... Nc4 {[%clk 0:00:26.7]} 34. b3
{[%clk 0:00:06.5]} 34... Ne5 {[%clk 0:00:24.6]} 35. c4 {[%clk 0:00:05.8]} 35...
Kf7 {[%clk 0:00:24.2]} 36. c5 {[%clk 0:00:05.6]} 36... Nd3+ {[%clk 0:00:22.3]}
37. Kc2 {[%clk 0:00:05]} 37... Nxc5 {[%clk 0:00:23.2]} 38. Kc3 {[%clk
0:00:05.4]} 38... Ne6 {[%clk 0:00:21.1]} 39. b4 {[%clk 0:00:05.4]} 39... Nf4
{[%clk 0:00:21.3]} 40. b5 {[%clk 0:00:05]} 40... Ne2+ {[%clk 0:00:20.5]} 41. Kc4
{[%clk 0:00:04.8]} 41... f5 {[%clk 0:00:16.2]} 42. gxf5 {[%clk 0:00:03.7]} 42...
gxf5 {[%clk 0:00:17.1]} 43. a4 {[%clk 0:00:03.3]} 43... Nf4 {[%clk 0:00:15.3]}
44. Kc5 {[%clk 0:00:02.4]} 44... Ne6+ {[%clk 0:00:13.2]} 45. Kc6 {[%clk
0:00:02.8]} 45... Ke7 {[%clk 0:00:12.8]} 0-1

[Event "*** Titled Tuesday Blitz"]
[Site "Chess.com"]
[Date "2020.11.03"]
[Round "4"]
[White "TorFredrikKaasen"]
[Black "kingofthenil"]
[Result "1-0"]
[WhiteElo "2698"]
[BlackElo "2484"]
[TimeControl "180+1"]
[EndTime "10:42:17 PST"]
[Termination "TorFredrikKaasen won by resignation"]

1. d4 {[%clk 0:03:00.9]} 1... Nf6 {[%clk 0:02:59.4]} 2. c4 {[%clk 0:02:56.1]}
2... c5 {[%clk 0:02:55.9]} 3. d5 {[%clk 0:02:56.1]} 3... e6 {[%clk 0:02:55.9]}
4. Nc3 {[%clk 0:02:55.9]} 4... exd5 {[%clk 0:02:56.8]} 5. cxd5 {[%clk
0:02:55.5]} 5... g6 {[%clk 0:02:57]} 6. e4 {[%clk 0:02:54.6]} 6... d6 {[%clk
0:02:56.9]} 7. Nf3 {[%clk 0:02:45.4]} 7... Bg7 {[%clk 0:02:56.9]} 8. Nd2 {[%clk
0:02:45.7]} 8... Nbd7 {[%clk 0:02:55.7]} 9. Be2 {[%clk 0:02:46]} 9... O-O {[%clk
0:02:55.2]} 10. O-O {[%clk 0:02:46.7]} 10... Ne5 {[%clk 0:02:56.1]} 11. f4
{[%clk 0:02:37.5]} 11... Neg4 {[%clk 0:02:55.9]} 12. Nc4 {[%clk 0:02:37.8]}
12... b5 {[%clk 0:02:56.2]} 13. h3 {[%clk 0:02:26.4]} 13... bxc4 {[%clk
0:02:49]} 14. hxg4 {[%clk 0:02:26.1]} 14... Nxg4 {[%clk 0:02:49.9]} 15. Bxg4
{[%clk 0:01:17.4]} 15... Qh4 {[%clk 0:02:49.4]} 16. Bh3 {[%clk 0:01:11.2]} 16...
Bxh3 {[%clk 0:02:42.6]} 17. Be3 {[%clk 0:01:04.5]} 17... Qg3 {[%clk 0:02:36.3]}
18. Qf3 {[%clk 0:00:49.3]} 18... Qxf3 {[%clk 0:02:36.6]} 19. Rxf3 {[%clk
0:00:49.3]} 19... Bg4 {[%clk 0:02:37.5]} 20. Rf2 {[%clk 0:00:42.3]} 20... Rfe8
{[%clk 0:02:35.4]} 21. e5 {[%clk 0:00:38.8]} 21... dxe5 {[%clk 0:02:32.6]} 22.
Bxc5 {[%clk 0:00:39.1]} 22... exf4 {[%clk 0:01:58.6]} 23. Rxf4 {[%clk
0:00:36.9]} 23... f5 {[%clk 0:01:59.5]} 24. Rxc4 {[%clk 0:00:32.3]} 24... Rac8
{[%clk 0:01:59.4]} 25. Kf1 {[%clk 0:00:28.2]} 25... Bxc3 {[%clk 0:00:31.8]} 26.
Rxc3 {[%clk 0:00:28.3]} 26... Re5 {[%clk 0:00:32.3]} 27. Bxa7 {[%clk 0:00:22.3]}
27... Ra8 {[%clk 0:00:21.1]} 28. Rc7 {[%clk 0:00:17.7]} 28... Rxd5 {[%clk
0:00:22]} 29. b4 {[%clk 0:00:15.4]} 29... f4 {[%clk 0:00:12.7]} 30. a4 {[%clk
0:00:13.3]} 30... Rd7 {[%clk 0:00:12.9]} 31. Bb6 {[%clk 0:00:09.6]} 31... Rxc7
{[%clk 0:00:07.5]} 32. Bxc7 {[%clk 0:00:10.5]} 32... Bd7 {[%clk 0:00:08.2]} 33.
a5 {[%clk 0:00:09.3]} 33... g5 {[%clk 0:00:06.4]} 34. Kf2 {[%clk 0:00:08.9]}
34... Kf7 {[%clk 0:00:06]} 35. Rd1 {[%clk 0:00:09.1]} 35... Bb5 {[%clk
0:00:03.4]} 36. Rd5 {[%clk 0:00:06.3]} 36... Bc4 {[%clk 0:00:01.9]} 37. Rxg5
{[%clk 0:00:06.1]} 37... Rc8 {[%clk 0:00:01.5]} 38. Rc5 {[%clk 0:00:06.1]} 38...
Ke6 {[%clk 0:00:02.4]} 39. Rxc4 {[%clk 0:00:06.3]} 39... Kd5 {[%clk 0:00:03.3]}
40. Rc5+ {[%clk 0:00:06.5]} 40... Kd4 {[%clk 0:00:04.2]} 41. a6 {[%clk 0:00:07]}
41... Kd3 {[%clk 0:00:05.1]} 42. a7 {[%clk 0:00:07.4]} 42... Ra8 {[%clk
0:00:05.7]} 43. Bb8 {[%clk 0:00:07.7]} 43... f3 {[%clk 0:00:05.1]} 44. gxf3
{[%clk 0:00:07.5]} 44... Rxa7 {[%clk 0:00:06]} 45. Bxa7 {[%clk 0:00:07.4]} 1-0

[Event "*** Titled Tuesday Blitz"]
[Site "Chess.com"]
[Date "2020.11.03"]
[Round "4"]
[White "tan275"]
[Black "jonaszmb"]
[Result "0-1"]
[WhiteElo "2188"]
[BlackElo "2400"]
[TimeControl "180+1"]
[EndTime "10:42:22 PST"]
[Termination "jonaszmb won on time"]

1. d4 {[%clk 0:02:59.8]} 1... Nf6 {[%clk 0:02:53.3]} 2. c4 {[%clk 0:02:59.1]}
2... c5 {[%clk 0:02:49.5]} 3. d5 {[%clk 0:02:58]} 3... b5 {[%clk 0:02:49.9]} 4.
cxb5 {[%clk 0:02:57.4]} 4... a6 {[%clk 0:02:50.4]} 5. e3 {[%clk 0:02:57.6]} 5...
g6 {[%clk 0:02:45.7]} 6. Nc3 {[%clk 0:02:55.8]} 6... Bg7 {[%clk 0:02:45.8]} 7.
Nf3 {[%clk 0:02:55.6]} 7... Qa5 {[%clk 0:02:44.4]} 8. Bd2 {[%clk 0:02:52.4]}
8... axb5 {[%clk 0:02:40.1]} 9. Bxb5 {[%clk 0:02:45.2]} 9... O-O {[%clk
0:02:38.9]} 10. a4 {[%clk 0:02:42.8]} 10... d6 {[%clk 0:02:35.1]} 11. O-O {[%clk
0:02:42.4]} 11... Bg4 {[%clk 0:02:29.5]} 12. Ne4 {[%clk 0:02:32]} 12... Qb6
{[%clk 0:02:23.4]} 13. Nxf6+ {[%clk 0:02:31.4]} 13... Bxf6 {[%clk 0:02:24.3]}
14. Bc3 {[%clk 0:02:31.4]} 14... Bxc3 {[%clk 0:02:15.2]} 15. bxc3 {[%clk
0:02:32.3]} 15... Na6 {[%clk 0:02:02.4]} 16. h3 {[%clk 0:02:25.1]} 16... Bf5
{[%clk 0:01:43.7]} 17. Qe2 {[%clk 0:02:03.3]} 17... Be4 {[%clk 0:01:29.9]} 18.
Rfd1 {[%clk 0:01:31.9]} 18... Nc7 {[%clk 0:01:25.8]} 19. Bc6 {[%clk 0:01:21.8]}
19... Ra7 {[%clk 0:01:18.3]} 20. Ng5 {[%clk 0:01:13.8]} 20... Bf5 {[%clk
0:01:16.1]} 21. e4 {[%clk 0:01:08.9]} 21... Bc8 {[%clk 0:01:16]} 22. Rdb1 {[%clk
0:01:04.3]} 22... Qa5 {[%clk 0:01:15.5]} 23. Qe3 {[%clk 0:00:57.4]} 23... f6
{[%clk 0:00:54.5]} 24. Nf3 {[%clk 0:00:54]} 24... Kg7 {[%clk 0:00:54.9]} 25. Nd2
{[%clk 0:00:52.7]} 25... Na6 {[%clk 0:00:47.9]} 26. Nc4 {[%clk 0:00:38]} 26...
Qd8 {[%clk 0:00:47.8]} 27. Nb6 {[%clk 0:00:24.8]} 27... Bb7 {[%clk 0:00:46.2]}
28. Bxb7 {[%clk 0:00:15.9]} 28... Rxb7 {[%clk 0:00:47.1]} 29. a5 {[%clk
0:00:13.5]} 29... Qc7 {[%clk 0:00:37.4]} 30. Qd3 {[%clk 0:00:13.1]} 30... c4
{[%clk 0:00:22.3]} 31. Qxc4 {[%clk 0:00:12.5]} 31... Nc5 {[%clk 0:00:22.9]} 32.
Qe2 {[%clk 0:00:06.6]} 32... Rfb8 {[%clk 0:00:23]} 33. Qc2 {[%clk 0:00:03.4]}
33... g5 {[%clk 0:00:22.9]} 34. Nc4 {[%clk 0:00:02.8]} 34... Nd7 {[%clk
0:00:18.7]} 35. a6 {[%clk 0:00:02]} 35... Rxb1+ {[%clk 0:00:16.6]} 36. Rxb1
{[%clk 0:00:02.4]} 36... Rxb1+ {[%clk 0:00:14.3]} 37. Qxb1 {[%clk 0:00:03.3]}
37... Qxc4 {[%clk 0:00:14.9]} 38. a7 {[%clk 0:00:03.5]} 38... Qa6 {[%clk
0:00:14]} 39. Qb8 {[%clk 0:00:02.9]} 39... Nxb8 {[%clk 0:00:11.8]} 40. axb8=Q
{[%clk 0:00:03.1]} 40... Qa1+ {[%clk 0:00:12.7]} 41. Kh2 {[%clk 0:00:03.4]}
41... Qxc3 {[%clk 0:00:13.6]} 42. Qe8 {[%clk 0:00:03.3]} 42... Qe5+ {[%clk
0:00:13.7]} 43. g3 {[%clk 0:00:01.2]} 43... Qxe4 {[%clk 0:00:14.2]} 0-1

[Event "*** Titled Tuesday Blitz"]
[Site "Chess.com"]
[Date "2020.11.03"]
[Round "4"]
[White "salomez"]
[Black "pavelalexandru07"]
[Result "1/2-1/2"]
[WhiteElo "2140"]
[BlackElo "2304"]
[TimeControl "180+1"]
[EndTime "10:42:22 PST"]
[Termination "Game drawn by repetition"]

1. e4 {[%clk 0:02:59.6]} 1... c5 {[%clk 0:03:00]} 2. Nf3 {[%clk 0:02:59.3]} 2...
d6 {[%clk 0:03:00.3]} 3. d4 {[%clk 0:02:55.8]} 3... cxd4 {[%clk 0:03:00.7]} 4.
Nxd4 {[%clk 0:02:55.4]} 4... Nf6 {[%clk 0:03:00.6]} 5. Nc3 {[%clk 0:02:56.3]}
5... a6 {[%clk 0:03:00.7]} 6. Bc4 {[%clk 0:02:56.9]} 6... e6 {[%clk 0:02:59.9]}
7. a4 {[%clk 0:02:49.1]} 7... Be7 {[%clk 0:02:58]} 8. O-O {[%clk 0:02:43.6]}
8... O-O {[%clk 0:02:57.2]} 9. Be3 {[%clk 0:02:11.7]} 9... Nbd7 {[%clk
0:02:49.9]} 10. f4 {[%clk 0:02:10.2]} 10... Qc7 {[%clk 0:02:30.7]} 11. Ba2
{[%clk 0:01:50.3]} 11... Nc5 {[%clk 0:02:28.3]} 12. Qf3 {[%clk 0:01:46.8]} 12...
b6 {[%clk 0:02:16]} 13. Rae1 {[%clk 0:01:30.7]} 13... Bb7 {[%clk 0:02:14.6]} 14.
Bc1 {[%clk 0:01:28]} 14... Rad8 {[%clk 0:00:40.2]} 15. b4 {[%clk 0:01:14.5]}
15... Ncxe4 {[%clk 0:00:12.3]} 16. Nxe4 {[%clk 0:01:13.5]} 16... Nxe4 {[%clk
0:00:12.6]} 17. Rxe4 {[%clk 0:01:13.6]} 17... Bf6 {[%clk 0:00:11.9]} 18. Qd3
{[%clk 0:00:57.4]} 18... Bxe4 {[%clk 0:00:09.9]} 19. Qxe4 {[%clk 0:00:57.2]}
19... Qc3 {[%clk 0:00:09.9]} 20. Be3 {[%clk 0:00:29.9]} 20... Qxb4 {[%clk
0:00:10.1]} 21. Qd3 {[%clk 0:00:16.1]} 21... Qxa4 {[%clk 0:00:08.5]} 22. Bb3
{[%clk 0:00:16.4]} 22... Qa3 {[%clk 0:00:06.5]} 23. Nc6 {[%clk 0:00:15.6]} 23...
Rd7 {[%clk 0:00:06.4]} 24. Bxb6 {[%clk 0:00:14]} 24... Rc8 {[%clk 0:00:06.5]}
25. Ne5 {[%clk 0:00:07.4]} 25... Rb7 {[%clk 0:00:02.5]} 26. Nc4 {[%clk
0:00:05.8]} 26... Qb4 {[%clk 0:00:02.2]} 27. Ba5 {[%clk 0:00:04.7]} 27... Qc5+
{[%clk 0:00:02.2]} 28. Kh1 {[%clk 0:00:04.4]} 28... d5 {[%clk 0:00:02.4]} 29.
Ne5 {[%clk 0:00:04]} 29... Bxe5 {[%clk 0:00:02.7]} 30. fxe5 {[%clk 0:00:04.2]}
30... Qxa5 {[%clk 0:00:03.6]} 31. Qf3 {[%clk 0:00:04.2]} 31... g6 {[%clk
0:00:03.8]} 32. c4 {[%clk 0:00:02.5]} 32... Qc7 {[%clk 0:00:02.2]} 33. cxd5
{[%clk 0:00:02.2]} 33... exd5 {[%clk 0:00:02.5]} 34. Bxd5 {[%clk 0:00:02.2]}
34... Ra7 {[%clk 0:00:02.9]} 35. e6 {[%clk 0:00:02.4]} 35... Rf8 {[%clk
0:00:03.6]} 36. exf7+ {[%clk 0:00:02.4]} 36... Kg7 {[%clk 0:00:03.3]} 37. Qf6+
{[%clk 0:00:02.6]} 37... Kh6 {[%clk 0:00:03.9]} 38. Qh4+ {[%clk 0:00:03.5]}
38... Kg7 {[%clk 0:00:03.7]} 39. Qf6+ {[%clk 0:00:04.4]} 39... Kh6 {[%clk
0:00:04.3]} 40. Qf3 {[%clk 0:00:03.8]} 40... Kg7 {[%clk 0:00:04.3]} 41. Qf6+
{[%clk 0:00:03.8]} 1/2-1/2

[Event "*** Titled Tuesday Blitz"]
[Site "Chess.com"]
[Date "2020.11.03"]
[Round "4"]
[White "Jenia84"]
[Black "Das_Virus_2020"]
[Result "1-0"]
[WhiteElo "2299"]
[BlackElo "2404"]
[TimeControl "180+1"]
[EndTime "10:42:23 PST"]
[Termination "Jenia84 won by resignation"]

1. Nf3 {[%clk 0:03:00.9]} 1... Nf6 {[%clk 0:02:58.9]} 2. b3 {[%clk 0:03:00.5]}
2... d6 {[%clk 0:02:57.6]} 3. Bb2 {[%clk 0:03:01.4]} 3... e5 {[%clk 0:02:57.5]}
4. e3 {[%clk 0:03:02.3]} 4... g6 {[%clk 0:02:57.3]} 5. Be2 {[%clk 0:03:03.2]}
5... Bg7 {[%clk 0:02:57.4]} 6. O-O {[%clk 0:03:04.1]} 6... O-O {[%clk
0:02:57.6]} 7. d3 {[%clk 0:03:05]} 7... c6 {[%clk 0:02:55.8]} 8. Nbd2 {[%clk
0:03:05.9]} 8... Re8 {[%clk 0:02:55.4]} 9. c4 {[%clk 0:03:06.6]} 9... Qe7 {[%clk
0:02:46]} 10. Qc2 {[%clk 0:03:05.7]} 10... h6 {[%clk 0:02:44]} 11. h3 {[%clk
0:03:05]} 11... Kh7 {[%clk 0:02:43.6]} 12. Rfe1 {[%clk 0:03:05.1]} 12... a5
{[%clk 0:02:42.5]} 13. a4 {[%clk 0:03:04.1]} 13... Na6 {[%clk 0:02:41.6]} 14.
Rad1 {[%clk 0:03:01.8]} 14... Nb4 {[%clk 0:02:41.2]} 15. Qb1 {[%clk 0:03:01.5]}
15... Bf5 {[%clk 0:02:32]} 16. Ne4 {[%clk 0:02:50.2]} 16... Rad8 {[%clk
0:02:11.1]} 17. Bf1 {[%clk 0:02:29.9]} 17... Bc8 {[%clk 0:02:03.4]} 18. Nxf6+
{[%clk 0:02:05.6]} 18... Bxf6 {[%clk 0:02:00.2]} 19. e4 {[%clk 0:02:04.9]} 19...
c5 {[%clk 0:01:52.9]} 20. Bc3 {[%clk 0:01:57.2]} 20... Bg7 {[%clk 0:01:51.8]}
21. g3 {[%clk 0:01:48.9]} 21... Rf8 {[%clk 0:01:50.3]} 22. Bg2 {[%clk
0:01:48.5]} 22... f6 {[%clk 0:01:31]} 23. Nh4 {[%clk 0:01:45.1]} 23... Qf7
{[%clk 0:01:24.2]} 24. Rf1 {[%clk 0:01:38.7]} 24... Qe7 {[%clk 0:01:08.5]} 25.
Rde1 {[%clk 0:01:18.9]} 25... b6 {[%clk 0:01:07.6]} 26. Kh2 {[%clk 0:01:18.1]}
26... Nc6 {[%clk 0:01:07]} 27. Qc1 {[%clk 0:01:15.1]} 27... Nd4 {[%clk
0:01:06.3]} 28. Bxd4 {[%clk 0:01:13.8]} 28... exd4 {[%clk 0:01:04.7]} 29. f4
{[%clk 0:01:12.9]} 29... Qf7 {[%clk 0:00:55.1]} 30. f5 {[%clk 0:01:11.8]} 30...
g5 {[%clk 0:00:55]} 31. Ng6 {[%clk 0:01:08.2]} 31... Rfe8 {[%clk 0:00:54.5]} 32.
Bf3 {[%clk 0:01:08.2]} 32... Re5 {[%clk 0:00:53.2]} 33. Nxe5 {[%clk 0:00:51.4]}
33... dxe5 {[%clk 0:00:52.5]} 34. Qd1 {[%clk 0:00:51.1]} 34... Bd7 {[%clk
0:00:50.4]} 35. Bh5 {[%clk 0:00:50.7]} 35... Qe7 {[%clk 0:00:49.7]} 36. Bg6+
{[%clk 0:00:50.6]} 36... Kg8 {[%clk 0:00:49.4]} 37. Qh5 {[%clk 0:00:50]} 37...
Be8 {[%clk 0:00:49]} 38. h4 {[%clk 0:00:48.8]} 38... Bf7 {[%clk 0:00:44.2]} 39.
hxg5 {[%clk 0:00:42.7]} 39... hxg5 {[%clk 0:00:43.5]} 40. Kg2 {[%clk 0:00:36.3]}
40... Kf8 {[%clk 0:00:43.1]} 41. Rh1 {[%clk 0:00:31.5]} 41... Ke8 {[%clk
0:00:40.7]} 42. Bxf7+ {[%clk 0:00:30.9]} 42... Qxf7 {[%clk 0:00:40.2]} 43. Qxf7+
{[%clk 0:00:30.6]} 43... Kxf7 {[%clk 0:00:41.1]} 44. Rh7 {[%clk 0:00:30.4]}
44... Rg8 {[%clk 0:00:34.3]} 45. Reh1 {[%clk 0:00:30.6]} 45... Kf8 {[%clk
0:00:34.1]} 46. Kf3 {[%clk 0:00:30.6]} 46... Kf7 {[%clk 0:00:34.3]} 47. Kg4
{[%clk 0:00:29.7]} 47... Kf8 {[%clk 0:00:34.2]} 48. R1h5 {[%clk 0:00:28.5]}
48... Kf7 {[%clk 0:00:34.2]} 49. R5h6 {[%clk 0:00:26.7]} 49... Kf8 {[%clk
0:00:28]} 50. Rg6 {[%clk 0:00:20.1]} 50... Kf7 {[%clk 0:00:28.1]} 51. Kh5 {[%clk
0:00:19.5]} 51... Kf8 {[%clk 0:00:27.2]} 52. Rhxg7 {[%clk 0:00:19.2]} 52... Rxg7
{[%clk 0:00:27.5]} 53. Rxf6+ {[%clk 0:00:19.5]} 53... Ke7 {[%clk 0:00:25.8]} 54.
Rxb6 {[%clk 0:00:19.1]} 54... Rh7+ {[%clk 0:00:26.1]} 55. Rh6 {[%clk 0:00:17.3]}
55... Rf7 {[%clk 0:00:22.9]} 56. Kxg5 {[%clk 0:00:17.5]} 56... Rg7+ {[%clk
0:00:23]} 57. Kh4 {[%clk 0:00:17.5]} 1-0

[Event "*** Titled Tuesday Blitz"]
[Site "Chess.com"]
[Date "2020.11.03"]
[Round "4"]
[White "tteshan"]
[Black "AurumO"]
[Result "1-0"]
[WhiteElo "2369"]
[BlackElo "1968"]
[TimeControl "180+1"]
[EndTime "10:42:24 PST"]
[Termination "tteshan won on time"]

1. d4 {[%clk 0:03:00.9]} 1... d5 {[%clk 0:02:44.3]} 2. c4 {[%clk 0:03:01.3]}
2... e6 {[%clk 0:02:44.2]} 3. Nc3 {[%clk 0:03:01.5]} 3... Nf6 {[%clk 0:02:44.5]}
4. cxd5 {[%clk 0:03:01.1]} 4... exd5 {[%clk 0:02:44.1]} 5. Bg5 {[%clk
0:03:01.5]} 5... c6 {[%clk 0:02:43.9]} 6. e3 {[%clk 0:03:01.9]} 6... Be7 {[%clk
0:02:44.4]} 7. Bd3 {[%clk 0:03:02.3]} 7... Nbd7 {[%clk 0:02:43.1]} 8. Qc2 {[%clk
0:03:02.3]} 8... h6 {[%clk 0:02:43]} 9. Bh4 {[%clk 0:03:02.1]} 9... O-O {[%clk
0:02:43.2]} 10. Nge2 {[%clk 0:03:02.4]} 10... Re8 {[%clk 0:02:43.8]} 11. O-O
{[%clk 0:03:02.4]} 11... Ne4 {[%clk 0:02:44.3]} 12. Bxe7 {[%clk 0:03:00.3]}
12... Qxe7 {[%clk 0:02:45.2]} 13. Bxe4 {[%clk 0:02:59.5]} 13... dxe4 {[%clk
0:02:46.1]} 14. Ng3 {[%clk 0:02:59.9]} 14... Nf6 {[%clk 0:02:46]} 15. Rfd1
{[%clk 0:02:59]} 15... Bg4 {[%clk 0:02:39.6]} 16. Rd2 {[%clk 0:02:57.9]} 16...
Rad8 {[%clk 0:02:38.6]} 17. h3 {[%clk 0:02:52.7]} 17... Bh5 {[%clk 0:02:34.2]}
18. Nxh5 {[%clk 0:02:46.1]} 18... Nxh5 {[%clk 0:02:35.1]} 19. Qb3 {[%clk
0:02:40.5]} 19... Nf6 {[%clk 0:02:34.3]} 20. d5 {[%clk 0:02:28.5]} 20... cxd5
{[%clk 0:02:32.5]} 21. Nxd5 {[%clk 0:02:28.8]} 21... Nxd5 {[%clk 0:02:31.6]} 22.
Rxd5 {[%clk 0:02:29]} 22... Rxd5 {[%clk 0:02:32]} 23. Qxd5 {[%clk 0:02:29.5]}
23... Rd8 {[%clk 0:02:32.6]} 24. Qa5 {[%clk 0:02:23.6]} 24... a6 {[%clk
0:02:21.9]} 25. Rc1 {[%clk 0:02:19.6]} 25... Qf6 {[%clk 0:01:44]} 26. Qb4 {[%clk
0:02:10.8]} 26... b5 {[%clk 0:01:24.2]} 27. Qxe4 {[%clk 0:01:33.1]} 27... Qxb2
{[%clk 0:01:15.2]} 28. Rc2 {[%clk 0:01:33]} 28... Qb1+ {[%clk 0:00:47.6]} 29.
Kh2 {[%clk 0:01:32.4]} 29... Qf1 {[%clk 0:00:47.3]} 30. Qe7 {[%clk 0:01:16.4]}
30... Qd3 {[%clk 0:00:17.8]} 31. Rc6 {[%clk 0:01:09.9]} 31... a5 {[%clk
0:00:11.9]} 32. Ra6 {[%clk 0:00:47]} 32... a4 {[%clk 0:00:11.4]} 33. Qc7 {[%clk
0:00:39.2]} 33... Rd7 {[%clk 0:00:07.9]} 34. Ra8+ {[%clk 0:00:33.1]} 34... Kh7
{[%clk 0:00:08.3]} 35. Qc8 {[%clk 0:00:30.8]} 35... Qd6+ {[%clk 0:00:07.4]} 36.
g3 {[%clk 0:00:29.7]} 36... Qd2 {[%clk 0:00:05.8]} 37. Kg2 {[%clk 0:00:10.7]}
37... Qd5+ {[%clk 0:00:03.7]} 38. Kg1 {[%clk 0:00:08.2]} 38... Qd1+ {[%clk
0:00:01.6]} 39. Kg2 {[%clk 0:00:07.9]} 39... Qd5+ {[%clk 0:00:01.4]} 40. Kh2
{[%clk 0:00:06.3]} 40... Qd1 {[%clk 0:00:02.3]} 41. Qg8+ {[%clk 0:00:04.1]}
41... Kg6 {[%clk 0:00:02.6]} 42. Qe8 {[%clk 0:00:03.9]} 42... Qd6 {[%clk
0:00:01.9]} 43. Qe4+ {[%clk 0:00:04]} 1-0